fUSD/lending_fUSD_20240216
["ID","MTS","AMOUNT","RATE_DAILY","PERIOD"]
[314183897,1708051835752,-510.69883287,0.00038356,7]
[314183898,1708051835762,-479.91582489,0.00038356,7]
[314183899,1708051835772,-516.71461023,0.00038356,7]
[314183900,1708051835781,-500.0,0.00038356,7]
[314183901,1708051835792,-500.0,0.00038356,7]
[314183902,1708051835802,-514.30332607,0.00038356,7]
[314183903,1708051835811,-347.78050865,0.00038356,7]
[314183904,1708051835821,-500.0,0.00038356,7]
[314183905,1708051835830,-523.98221864,0.00038356,7]
[314183906,1708051835840,-1555.25,0.00038356,7]
[314183907,1708051836041,-737.1,0.00038356,7]
[314183908,1708051836052,-505.53567464,0.00038356,7]
[314183909,1708051836062,-520.7216417,0.00038356,7]
[314183910,1708051836071,-500.0,0.00038356,7]
[314183911,1708051836080,-500.0,0.00038356,7]
[314183912,1708051836091,-500.0,0.00038356,7]
[314183913,1708051836101,-534.12977323,0.00038356,7]
[314183914,1708051836110,-514.30025046,0.00038356,7]
[314183915,1708051836120,-522.35206864,0.00038356,7]
[314183916,1708051836129,-525.44474841,0.00038356,7]
[314183917,1708051836138,-500.0,0.00038356,7]
[314183918,1708051836148,-510.51641097,0.00038356,7]
[314183919,1708051836157,-500.0,0.00038356,7]
[314183920,1708051836166,-282.7830296,0.00038356,7]
[314183921,1708051836175,-535.42,0.00038356,7]
[314183922,1708051836185,-500.0,0.00038356,7]
[314183923,1708051836194,-500.0,0.00038356,7]
[314183924,1708051836204,-507.24076654,0.00038356,7]
[314183925,1708051836213,-500.0,0.00038356,7]
[314183926,1708051836222,-581.45289515,0.00038356,7]
[314183927,1708051836231,-500.0,0.00038356,7]
[314183928,1708051836240,-500.0,0.00038356,7]
[314183929,1708051836250,-526.20846195,0.00038356,7]
[314183930,1708051836259,-522.33479436,0.00038356,7]
[314183931,1708051836268,-555.11583266,0.00038356,7]
[314183932,1708051836278,-500.0,0.00038356,7]
[314183933,1708051836287,-513.23155606,0.00038356,7]
[314183934,1708051836297,-512.20131443,0.00038356,7]
[314183935,1708051836307,-500.0,0.00038356,7]
[314183936,1708051836316,-566.7838026,0.00038356,7]
[314183937,1708051836326,-535.2045803,0.00038356,7]
[314183938,1708051836336,-525.45589969,0.00038356,7]
[314183939,1708051836346,-500.0,0.00038356,7]
[314183940,1708051836355,-525.02433786,0.00038356,7]
[314183941,1708051836364,-512.26889267,0.00038356,7]
[314183942,1708051836377,-540.06820508,0.00038356,7]
[314183943,1708051836386,-500.0,0.00038356,7]
[314183944,1708051836395,-534.5110758,0.00038356,7]
[314183945,1708051836405,-622.97755774,0.00038356,7]
[314183946,1708051836414,-638.91556807,0.00038356,7]
[314183947,1708051836423,-500.0,0.00038356,7]
[314183948,1708051836433,-513.1323479,0.00038356,7]
[314183949,1708051836442,-521.69611272,0.00038356,7]
[314183950,1708051836451,-1008.53337785,0.00038356,7]
[314183951,1708051836461,-601.31291904,0.00038356,7]
[314183952,1708051836470,-500.0,0.00038356,7]
[314183953,1708051836479,-537.6664727,0.00038356,7]
[314183954,1708051836489,-1217.51,0.00038356,7]
[314183955,1708051836498,-500.0,0.00038356,7]
[314183956,1708051836508,-591.19536137,0.00038356,7]
[314183957,1708051836517,-500.0,0.00038356,7]
[314183958,1708051836526,-503.16420493,0.00038356,7]
[314183959,1708051836535,-500.0,0.00038356,7]
[314183960,1708051836544,-500.0,0.00038356,7]
[314183961,1708051836554,-521.68915943,0.00038356,7]
[314183962,1708051836563,-500.0,0.00038356,7]
[314183963,1708051836573,-500.0,0.00038356,7]
[314183964,1708051836582,-235.69882664,0.00038356,7]
[314183965,1708051836592,-518.80932567,0.00038356,7]
[314183966,1708051836601,-516.50672674,0.00038356,7]
[314183967,1708051836610,-637.19729707,0.00038356,7]
[314183968,1708051836619,-500.0,0.00038356,7]
[314183969,1708051836629,-508.80446898,0.00038356,7]
[314183970,1708051836638,-500.0,0.00038356,7]
[314183971,1708051836647,-526.47,0.00038356,7]
[314183972,1708051836657,-520.12093512,0.00038356,7]
[314183973,1708051836667,-500.0,0.00038356,7]
[314183974,1708051836676,-500.0,0.00038356,7]
[314183975,1708051836687,-592.08,0.00038356,7]
[314183976,1708051836696,-500.0,0.00038356,7]
[314183977,1708051836706,-520.80093995,0.00038356,7]
[314183978,1708051836717,-500.0,0.00038356,7]
[314183979,1708051836726,-500.0,0.00038356,7]
[314183980,1708051836736,-500.0,0.00038356,7]
[314183981,1708051836746,-500.0,0.00038356,7]
[314183982,1708051836757,-500.0,0.00038356,7]
[314183983,1708051836766,-500.0,0.00038356,7]
[314183984,1708051836776,-523.08491718,0.00038356,7]
[314183985,1708051836785,-500.0,0.00038356,7]
[314183986,1708051836794,-6327.73,0.00038356,7]
[314183987,1708051836804,-500.0,0.00038356,7]
[314183988,1708051836813,-574.19104652,0.00038356,7]
[314183989,1708051836823,-500.0,0.00038356,7]
[314183990,1708051836832,-500.0,0.00038356,7]
[314183991,1708051836842,-528.32624609,0.00038356,7]
[314183992,1708051836852,-511.45886209,0.00038356,7]
[314183993,1708051836861,-500.0,0.00038356,7]
[314183994,1708051836871,-638.26,0.00038356,7]
[314183995,1708051836881,-553.99542941,0.00038356,7]
[314183996,1708051836890,-500.0,0.00038356,7]
[314183997,1708051836900,-500.0,0.00038356,7]
[314183998,1708051836909,-509.85817648,0.00038356,7]
[314183999,1708051836919,-586.14510254,0.00038356,7]
[314184000,1708051836929,-514.04043967,0.00038356,7]
[314184001,1708051836938,-500.0,0.00038356,7]
[314184002,1708051836947,-514.32117353,0.00038356,7]
[314184003,1708051836956,-510.42216237,0.00038356,7]
[314184004,1708051836966,-500.0,0.00038356,7]
[314184005,1708051836975,-229.31025086,0.00038356,7]
[314184006,1708051836985,-500.0,0.00038356,7]
[314184007,1708051836994,-188.58746912,0.00038356,7]
[314184008,1708051837003,-500.0,0.00038356,7]
[314184009,1708051837012,-500.0,0.00038356,7]
[314184010,1708051837021,-500.0,0.00038356,7]
[314184011,1708051837030,-610.77526794,0.00038356,7]
[314184012,1708051837039,-511.52858337,0.00038356,7]
[314184013,1708051837048,-500.0,0.00038356,7]
[314184014,1708051837057,-531.59,0.00038356,7]
[314184015,1708051837066,-500.0,0.00038356,7]
[314184016,1708051837075,-526.48681206,0.00038356,7]
[314184017,1708051837084,-7015.68,0.00038356,7]
[314184018,1708051837095,-212.54172551,0.00038356,7]
[314184019,1708051837104,-516.5457793,0.00038356,7]
[314184020,1708051837115,-500.0,0.00038356,7]
[314184021,1708051837124,-500.0,0.00038356,7]
[314184022,1708051837133,-590.00176556,0.00038356,7]
[314184023,1708051837142,-500.0,0.00038356,7]
[314184024,1708051837151,-539.501531,0.00038356,7]
[314184025,1708051837160,-500.0,0.00038356,7]
[314184026,1708051837170,-500.0,0.00038356,7]
[314184027,1708051837179,-500.0,0.00038356,7]
[314184028,1708051837188,-1347.86,0.00038356,7]
[314184029,1708051837198,-521.53372518,0.00038356,7]
[314184030,1708051837207,-499.24852528,0.00038356,7]
[314184031,1708051837216,-527.53498059,0.00038356,7]
[314184032,1708051837226,-499.99365884,0.00038356,7]
[314184033,1708051837235,-564.04090072,0.00038356,7]
[314184034,1708051837245,-528.16775179,0.00038356,7]
[314184035,1708051837255,-533.89202331,0.00038356,7]
[314184036,1708051837264,-500.0,0.00038356,7]
[314184037,1708051837274,-511.70052139,0.00038356,7]
[314184038,1708051837283,-500.0,0.00038356,7]
[314184039,1708051837292,-198.765145,0.00038356,7]
[314184040,1708051837302,-538.76164286,0.00038356,7]
[314184041,1708051837310,-1014.03,0.00038356,7]
[314184042,1708051837320,-542.17606765,0.00038356,7]
[314184043,1708051837329,-589.62303244,0.00038356,7]
[314184044,1708051837339,-500.0,0.00038356,7]
[314184045,1708051837348,-500.0,0.00038356,7]
[314184046,1708051837357,-500.0,0.00038356,7]
[314184047,1708051837366,-500.0,0.00038356,7]
[314184048,1708051837375,-590.62430401,0.00038356,7]
[314184049,1708051837384,-775.0,0.00038356,7]
[314184050,1708051837394,-500.0,0.00038356,7]
[314184051,1708051837403,-449.54270072,0.00038356,7]
[314184052,1708051837412,-500.0,0.00038356,7]
[314184053,1708051837422,-525.93,0.00038356,7]
[314184054,1708051837431,-523.69113888,0.00038356,7]
[314184055,1708051837441,-461.0,0.00038356,7]
[314184056,1708051837450,-545.18535255,0.00038356,7]
[314184057,1708051837459,-643.50557754,0.00038356,7]
[314184058,1708051837468,-515.0,0.00038356,7]
[314184059,1708051837477,-592.44186288,0.00038356,7]
[314184060,1708051837486,-549.53559489,0.00038356,7]
[314184061,1708051837495,-506.15,0.00038356,7]
[314184062,1708051837504,-500.0,0.00038356,7]
[314184063,1708051837514,-528.59076648,0.00038356,7]
[314184064,1708051837523,-500.0,0.00038356,7]
[314184065,1708051837532,-513.2846658,0.00038356,7]
[314184066,1708051837542,-500.0,0.00038356,7]
[314184067,1708051837551,-200.0,0.00038356,7]
[314184068,1708051837561,-500.0,0.00038356,2]
[314184069,1708051837570,-506.76586465,0.00038356,7]
[314184070,1708051837579,-587.63544193,0.00038356,7]
[314184071,1708051837589,-500.0,0.00038356,7]
[314184072,1708051837598,-554.66949387,0.00038356,7]
[314184074,1708051837608,-615.1,0.00038356,7]
[314184075,1708051837617,-500.0,0.00038356,2]
[314184076,1708051837626,-500.0,0.00038356,7]
[314184077,1708051837635,-548.52992008,0.00038356,7]
[314184078,1708051837644,-500.0,0.00038356,7]
[314184079,1708051837653,-155.04,0.00038356,2]
[314184080,1708051837663,-2131.03,0.00038356,15]
[314184081,1708051837673,-582.45116272,0.00038483,10]
[314184082,1708051837685,-39041.44591473,0.000385,2]
[314184083,1708051837695,-1429.88373055,0.000385,2]
[314184084,1708051837704,-549.76,0.00038526,2]
[314184085,1708051837713,-2291.16361777,0.0003853,2]
[314184086,1708051837723,-721.17521344,0.00038627,2]
[314184087,1708051837732,-510.81320037,0.0003863,7]
[314184088,1708051837741,-500.0,0.0003863,2]
[314184089,1708051837750,-500.0,0.0003863,7]
[314184090,1708051837760,-500.0,0.0003863,7]
[314184091,1708051837771,-342.90386106,0.0003863,7]
[314184092,1708051837780,-571.41297017,0.0003863,7]
[314184093,1708051837789,-500.0,0.0003863,7]
[314184094,1708051837798,-534.4866123,0.0003863,7]
[314184095,1708051837808,-208.59410673,0.0003863,7]
[314184096,1708051837817,-500.0,0.0003863,7]
[314184097,1708051837826,-315.67215555,0.0003863,7]
[314184098,1708051837835,-500.0,0.0003863,7]
[314184099,1708051837847,-551.41796048,0.0003863,7]
[314184100,1708051837857,-500.0,0.0003863,7]
[314184101,1708051837866,-500.0,0.0003863,7]
[314184102,1708051837875,-535.41327827,0.0003863,7]
[314184103,1708051837885,-578.84257421,0.0003863,7]
[314184104,1708051837895,-500.0,0.0003863,7]
[314184105,1708051837904,-500.0,0.0003863,7]
[314184106,1708051837914,-490.00531692,0.0003863,7]
[314184107,1708051837923,-1000.0,0.0003863,30]
[314184108,1708051837932,-554.82404435,0.0003863,7]
[314184109,1708051837942,-550.61952341,0.0003863,7]
[314184110,1708051837951,-521.74377292,0.0003863,7]
[314184111,1708051837961,-150.01230692,0.0003863,7]
[314184112,1708051837969,-500.0,0.0003863,7]
[314184113,1708051837978,-500.0,0.0003863,7]
[314184114,1708051837988,-546.94,0.0003863,7]
[314184115,1708051838004,-647.76658355,0.0003863,7]
[314184116,1708051838018,-605.6,0.0003863,7]
[314184117,1708051838027,-500.0,0.0003863,7]
[314184118,1708051838037,-210.7725259,0.0003863,7]
[314184119,1708051838047,-500.0,0.0003863,7]
[314184120,1708051838056,-500.0,0.0003863,7]
[314184121,1708051838066,-500.0,0.0003863,7]
[314184122,1708051838075,-468.05212889,0.0003863,7]
[314184123,1708051838084,-1555.25,0.0003863,7]
[314184124,1708051838095,-737.1,0.0003863,7]
[314184125,1708051838104,-500.0,0.0003863,7]
[314184126,1708051838113,-152.05369087,0.0003863,7]
[314184127,1708051838123,-384.62577617,0.0003863,7]
[314184128,1708051838132,-557.37522575,0.0003863,7]
[314184129,1708051838142,-535.42,0.0003863,7]
[314184130,1708051838151,-500.0,0.0003863,7]
[314184131,1708051838160,-500.0,0.0003863,7]
[314184132,1708051838170,-387.50725965,0.0003863,7]
[314184133,1708051838180,-500.0,0.0003863,7]
[314184134,1708051838189,-500.0,0.0003863,7]
[314184135,1708051838198,-177.76783251,0.0003863,7]
[314184136,1708051838208,-158.14065158,0.0003863,7]
[314184138,1708051838218,-609.64884994,0.0003863,7]
[314184139,1708051838227,-584.01366519,0.0003863,7]
[314184140,1708051838237,-1217.51,0.0003863,7]
[314184141,1708051838247,-500.0,0.0003863,7]
[314184142,1708051838256,-648.53772077,0.0003863,7]
[314184143,1708051838266,-500.0,0.0003863,7]
[314184144,1708051838275,-500.0,0.0003863,7]
[314184145,1708051838285,-526.47,0.0003863,7]
[314184146,1708051838294,-248.06856746,0.0003863,7]
[314184147,1708051838303,-592.08,0.0003863,7]
[314184148,1708051838313,-500.0,0.0003863,7]
[314184149,1708051838322,-500.0,0.0003863,7]
[314184150,1708051838332,-157.44132434,0.0003863,7]
[314184151,1708051838343,-6327.73,0.0003863,7]
[314184152,1708051838353,-500.0,0.0003863,7]
[314184153,1708051838362,-500.0,0.0003863,7]
[314184154,1708051838371,-500.0,0.0003863,7]
[314184155,1708051838380,-500.0,0.0003863,7]
[314184156,1708051838389,-638.26,0.0003863,7]
[314184157,1708051838399,-500.0,0.0003863,7]
[314184158,1708051838408,-600.04986269,0.0003863,7]
[314184159,1708051838417,-531.59,0.0003863,7]
[314184160,1708051838426,-500.0,0.0003863,7]
[314184161,1708051838435,-7015.68,0.0003863,7]
[314184162,1708051838445,-500.0,0.0003863,7]
[314184163,1708051838455,-301.94256089,0.0003863,7]
[314184164,1708051838464,-500.0,0.0003863,7]
[314184165,1708051838473,-1347.86,0.0003863,7]
[314184166,1708051838482,-500.0,0.0003863,7]
[314184167,1708051838491,-1014.03,0.0003863,7]
[314184168,1708051838501,-500.0,0.0003863,7]
[314184169,1708051838510,-500.0,0.0003863,7]
[314184170,1708051838519,-500.0,0.0003863,7]
[314184171,1708051838528,-525.93,0.0003863,7]
[314184172,1708051838538,-506.15,0.0003863,7]
[314184173,1708051838547,-500.0,0.0003863,7]
[314184174,1708051838557,-615.1,0.0003863,7]
[314184175,1708051838566,-500.0,0.0003863,7]
[314184176,1708051838575,-369.65,0.000387,2]
[314184177,1708051838585,-766.0,0.00038701,7]
[314184178,1708051838594,-458.0,0.00038701,7]
[314184179,1708051838604,-509.0,0.00038701,7]
[314184180,1708051838613,-150.0,0.00038701,7]
[314184181,1708051838622,-160.2656639,0.00038799,4]
[314184182,1708051838631,-155.0,0.000388,2]
[314184183,1708051838641,-153.53778306,0.00038804,2]
[314184184,1708051838650,-1036.0,0.000389,7]
[314184185,1708051838659,-11344.64174431,0.000389,5]
[314184186,1708051838672,-177.38,0.000389,2]
[314184187,1708051838681,-1253.7730007,0.000389,2]
[314184188,1708051838690,-500.0,0.00038904,2]
[314184189,1708051838699,-500.0,0.00038904,7]
[314184190,1708051838708,-1000.0,0.00038904,30]
[314184191,1708051838718,-205.64156998,0.00038904,7]
[314184192,1708051838727,-500.0,0.00038904,7]
[314184193,1708051838736,-546.94,0.00038904,7]
[314184194,1708051838746,-605.6,0.00038904,7]
[314184195,1708051838756,-500.0,0.00038904,7]
[314184196,1708051838766,-500.0,0.00038904,7]
[314184197,1708051838776,-500.0,0.00038904,7]
[314184198,1708051838785,-500.0,0.00038904,7]
[314184199,1708051838794,-1555.25,0.00038904,7]
[314184200,1708051838804,-737.1,0.00038904,7]
[314184201,1708051838813,-500.0,0.00038904,7]
[314184202,1708051838822,-535.42,0.00038904,7]
[314184203,1708051838831,-500.0,0.00038904,7]
[314184204,1708051838840,-500.0,0.00038904,7]
[314184205,1708051838851,-500.0,0.00038904,7]
[314184206,1708051838860,-500.0,0.00038904,7]
[314184207,1708051838869,-1217.51,0.00038904,7]
[314184208,1708051838878,-500.0,0.00038904,7]
[314184209,1708051838888,-424.50113481,0.00038904,7]
[314184210,1708051838897,-500.0,0.00038904,7]
[314184211,1708051838906,-526.47,0.00038904,7]
[314184212,1708051838915,-592.08,0.00038904,7]
[314184213,1708051838924,-500.0,0.00038904,7]
[314184214,1708051838934,-500.0,0.00038904,7]
[314184215,1708051838943,-6327.73,0.00038904,7]
[314184216,1708051838953,-500.0,0.00038904,7]
[314184217,1708051838962,-500.0,0.00038904,7]
[314184218,1708051838971,-500.0,0.00038904,7]
[314184219,1708051838980,-352.73100676,0.00038904,7]
[314184220,1708051838990,-638.26,0.00038904,7]
[314184221,1708051839000,-500.0,0.00038904,7]
[314184222,1708051839009,-531.59,0.00038904,7]
[314184223,1708051839019,-500.0,0.00038904,7]
[314184224,1708051839028,-7015.68,0.00038904,7]
[314184225,1708051839037,-500.0,0.00038904,7]
[314184226,1708051839046,-500.0,0.00038904,7]
[314184227,1708051839055,-1347.86,0.00038904,7]
[314184228,1708051839064,-500.0,0.00038904,7]
[314184229,1708051839073,-1014.03,0.00038904,7]
[314184230,1708051839082,-500.0,0.00038904,7]
[314184231,1708051839091,-500.0,0.00038904,7]
[314184232,1708051839101,-500.0,0.00038904,7]
[314184233,1708051839111,-525.93,0.00038904,7]
[314184234,1708051839121,-506.15,0.00038904,7]
[314184235,1708051839130,-500.0,0.00038904,7]
[314184236,1708051839139,-615.1,0.00038904,7]
[314184237,1708051839149,-500.0,0.00038904,7]
[314184238,1708051839158,-151.021624,0.00038948,24]
[314184239,1708051839168,-13923.95879524,0.00039,7]
[314184240,1708051839177,-14459.74,0.00039,11]
[314184241,1708051839186,-1013.7664703,0.00039,2]
[314184242,1708051839196,-498.7509207,0.00039022,9]
[314184243,1708051839205,-766.0,0.00039046,7]
[314184244,1708051839214,-458.0,0.00039046,7]
[314184245,1708051839224,-509.0,0.00039046,7]
[314184246,1708051839233,-150.0,0.00039046,7]
[314184247,1708051839242,-151.021624,0.00039048,24]
[314184248,1708051839251,-151.021624,0.00039148,25]
[314184249,1708051839260,-377.25,0.00039176,2]
[314184250,1708051839270,-500.0,0.00039178,2]
[314184251,1708051839279,-500.0,0.00039178,7]
[314184252,1708051839288,-1000.0,0.00039178,30]
[314184253,1708051839297,-500.0,0.00039178,7]
[314184254,1708051839306,-546.94,0.00039178,7]
[314184255,1708051839316,-605.6,0.00039178,7]
[314184256,1708051839325,-500.0,0.00039178,7]
[314184257,1708051839335,-500.0,0.00039178,7]
[314184258,1708051839346,-500.0,0.00039178,7]
[314184259,1708051839355,-645.68824147,0.00039178,7]
[314184260,1708051839365,-1555.25,0.00039178,7]
[314184261,1708051839374,-737.1,0.00039178,7]
[314184262,1708051839383,-500.0,0.00039178,7]
[314184263,1708051839539,-535.42,0.00039178,7]
[314184264,1708051839549,-509.61232403,0.00039178,7]
[314184265,1708051839558,-500.0,0.00039178,7]
[314184266,1708051839567,-500.0,0.00039178,7]
[314184267,1708051839577,-500.0,0.00039178,7]
[314184268,1708051839586,-1217.51,0.00039178,7]
[314184269,1708051839596,-500.0,0.00039178,7]
[314184270,1708051839606,-500.0,0.00039178,7]
[314184271,1708051839615,-526.47,0.00039178,7]
[314184272,1708051839624,-592.08,0.00039178,7]
[314184273,1708051839633,-500.0,0.00039178,7]
[314184274,1708051839642,-500.0,0.00039178,7]
[314184275,1708051839651,-6327.73,0.00039178,7]
[314184276,1708051839660,-547.86451926,0.00039178,7]
[314184277,1708051839670,-500.0,0.00039178,7]
[314184278,1708051839683,-500.0,0.00039178,7]
[314184279,1708051839692,-638.26,0.00039178,7]
[314184280,1708051839701,-500.0,0.00039178,7]
[314184281,1708051839710,-531.59,0.00039178,7]
[314184282,1708051839719,-434.77534201,0.00039178,7]
[314184283,1708051839729,-7015.68,0.00039178,7]
[314184284,1708051839738,-500.0,0.00039178,7]
[314184285,1708051839748,-500.0,0.00039178,7]
[314184286,1708051839757,-1347.86,0.00039178,7]
[314184287,1708051839767,-500.0,0.00039178,7]
[314184288,1708051839777,-1014.03,0.00039178,7]
[314184289,1708051839786,-500.0,0.00039178,7]
[314184290,1708051839795,-500.0,0.00039178,7]
[314184291,1708051839805,-561.10504035,0.00039178,7]
[314184292,1708051839814,-525.93,0.00039178,7]
[314184293,1708051839823,-506.15,0.00039178,7]
[314184294,1708051839833,-500.0,0.00039178,7]
[314184295,1708051839842,-615.1,0.00039178,7]
[314184296,1708051839853,-500.0,0.00039178,7]
[314184297,1708051839862,-219.82,0.00039188,2]
[314184298,1708051839872,-4481.389,0.000392,36]
[314184299,1708051839881,-1000.0,0.000392,2]
[314184300,1708051839890,-151.021624,0.00039248,25]
[314184301,1708051839899,-267.21,0.0003926,2]
[314184302,1708051839909,-39041.44591473,0.000393,2]
[314184303,1708051839918,-1429.88373055,0.000393,2]
[314184304,1708051839928,-246.98,0.00039343,2]
[314184305,1708051839937,-2835.0,0.00039343,2]
[314184306,1708051839946,-189.445,0.00039343,2]
[314184307,1708051839955,-842.0,0.00039343,2]
[314184308,1708051839965,-953.0,0.00039343,2]
[314184309,1708051839974,-711.496,0.00039343,2]
[314184310,1708051839983,-1254.0,0.00039343,2]
[314184311,1708051839992,-1231.0,0.00039343,2]
[314184312,1708051840001,-216.0,0.00039343,2]
[314184313,1708051840010,-237.0,0.00039343,2]
[314184314,1708051840020,-858.0,0.00039343,2]
[314184315,1708051840029,-429.0,0.00039343,2]
[314184316,1708051840039,-343.0,0.00039343,2]
[314184317,1708051840048,-150.0,0.00039343,2]
[314184318,1708051840057,-321.0,0.00039343,2]
[314184319,1708051840066,-793.133,0.00039343,2]
[314184320,1708051840075,-454.0,0.00039343,2]
[314184321,1708051840083,-19846.0,0.00039343,2]
[314184322,1708051840095,-150.0,0.00039343,2]
[314184323,1708051840107,-3126.329,0.00039343,2]
[314184324,1708051840116,-2289.0,0.00039343,2]
[314184325,1708051840125,-150.0,0.00039343,2]
[314184326,1708051840134,-8164.0,0.00039343,2]
[314184327,1708051840144,-2927.0,0.00039343,2]
[314184328,1708051840153,-1037.0,0.00039343,2]
[314184329,1708051840162,-151.021624,0.00039348,25]
[314184330,1708051840172,-3208.56352428,0.0003937,2]
[314184331,1708051840181,-766.0,0.00039392,7]
[314184332,1708051840190,-458.0,0.00039392,7]
[314184333,1708051840200,-509.0,0.00039392,7]
[314184334,1708051840209,-150.0,0.00039392,7]
[314184335,1708051840218,-151.021624,0.00039448,24]
[314184336,1708051840228,-177.38,0.00039448,2]
[314184337,1708051840237,-507.7576959,0.00039451,7]
[314184338,1708051840246,-49499.43376152,0.00039452,3]
[314184339,1708051840256,-491.58786276,0.00039452,2]
[314184340,1708051840266,-500.0,0.00039452,7]
[314184341,1708051840275,-1000.0,0.00039452,30]
[314184342,1708051840285,-500.0,0.00039452,7]
[314184343,1708051840294,-546.94,0.00039452,7]
[314184344,1708051840304,-605.6,0.00039452,7]
[314184345,1708051840313,-500.0,0.00039452,7]
[314184346,1708051840322,-500.0,0.00039452,7]
[314184347,1708051840333,-500.0,0.00039452,7]
[314184348,1708051840342,-1555.25,0.00039452,7]
[314184349,1708051840353,-737.1,0.00039452,7]
[314184350,1708051840362,-500.0,0.00039452,7]
[314184351,1708051840372,-535.42,0.00039452,7]
[314184352,1708051840381,-500.0,0.00039452,7]
[314184353,1708051840390,-500.0,0.00039452,7]
[314184354,1708051840399,-500.0,0.00039452,7]
[314184355,1708051840409,-1217.51,0.00039452,7]
[314184356,1708051840418,-500.0,0.00039452,7]
[314184357,1708051840427,-500.0,0.00039452,7]
[314184358,1708051840436,-526.47,0.00039452,7]
[314184359,1708051840445,-500.0,0.00039452,7]
[314184360,1708051840454,-238.42993912,0.00039452,7]
[314184361,1708051840464,-6327.73,0.00039452,7]
[314184362,1708051840473,-530.53150813,0.00039452,7]
[314184363,1708051840483,-500.0,0.00039452,7]
[314184364,1708051840492,-638.26,0.00039452,7]
[314184365,1708051840502,-500.0,0.00039452,7]
[314184366,1708051840512,-531.59,0.00039452,7]
[314184367,1708051840521,-7015.68,0.00039452,7]
[314184368,1708051840531,-500.0,0.00039452,7]
[314184369,1708051840540,-500.0,0.00039452,7]
[314184370,1708051840550,-1347.86,0.00039452,7]
[314184371,1708051840559,-500.0,0.00039452,7]
[314184372,1708051840568,-1014.03,0.00039452,7]
[314184373,1708051840578,-500.0,0.00039452,7]
[314184374,1708051840587,-500.0,0.00039452,7]
[314184375,1708051840598,-525.93,0.00039452,7]
[314184376,1708051840607,-506.15,0.00039452,7]
[314184377,1708051840617,-500.0,0.00039452,7]
[314184378,1708051840626,-615.1,0.00039452,7]
[314184379,1708051840635,-500.0,0.00039452,7]
[314184380,1708051840644,-288.092847,0.00039452,14]
[314184381,1708051840654,-159897.655356,0.0003947,10]
[314184382,1708051840664,-75209.8549677,0.0003947,4]
[314184383,1708051840674,-3144.94945241,0.0003948,7]
[314184384,1708051840857,-318.62463799,0.0003948,7]
[314184385,1708051840869,-1536.4259096,0.0003948,7]
[314184386,1708051840879,-150.0,0.0003948,2]
[314184387,1708051840889,-1510.8137,0.00039483,7]
[314184388,1708051840898,-1024.16371146,0.00039483,30]
[314184389,1708051840907,-158.76536105,0.00039483,7]
[314184390,1708051840916,-1750.33231915,0.00039483,120]
[314184391,1708051840925,-151.0,0.00039483,30]
[314184392,1708051840935,-200.871481,0.00039483,30]
[314184393,1708051840944,-150.0,0.00039487,2]
[314184394,1708051840954,-200.0,0.00039561,15]
[314184395,1708051840964,-800.0,0.00039561,15]
[314184396,1708051840973,-500.0,0.00039561,20]
[314184397,1708051840982,-154.9644948,0.0003966,5]
[314184398,1708051840992,-345.0,0.0003969,2]